Cogmind - Beta 17.1 @@@ ROGUE MODE // 2026.09.07 @ 09:42:16 Player: H3-MLN Result: Self-destructed Performance ------------- Evolutions (0) 0 Regions Visited (4) 800 Robots Destroyed (12) 60 Value Destroyed (290) 290 Prototype IDs (0) 0 Alien Tech Used (0) 0 Bonus (0) 0 TOTAL SCORE: 1150 Bonus ------- None Cogmind --------- Core Integrity 64/250 Matter 260/300 Energy 250/250 System Corruption 4% Temperature Cool (0) Movement Rolling (115) Ox1 Location -9/Mines Parts ------- > --- POWER (1) -------- Ion Engine > --- PROPULSION (2) --- Light Treads Compact Wheel > --- UTILITY (2) ------ Improved Heat Sink Medium Storage Unit > --- WEAPON (2) ------- Shock Rifle Assault Rifle > --- INVENTORY (10) --- Ion Engine Light Ion Engine Flight Unit Flight Unit Small Laser Grenade Launcher Grenade Launcher Grenade Launcher Grenade Launcher Axe Peak State ------------ > --- POWER ------------ Ion Engine > --- PROPULSION ------- Light Treads Compact Wheel > --- UTILITY ---------- Improved Heat Sink Medium Storage Unit > --- WEAPON ----------- Shock Rifle Field Laser > --- INVENTORY -------- Light Ion Engine Flight Unit Flight Unit Assault Rifle Grenade Launcher Grenade Launcher Grenade Launcher Grenade Launcher Axe [Rating: 14] Favorites ----------- Power Ion Engine Engine Ion Engine Propulsion Light Treads Treads Light Treads Wheel Compact Wheel Utility Medium Storage Unit Device Improved Heat Sink Storage Medium Storage Unit Weapon Assault Rifle Energy Gun Shock Rifle Ballistic Gun Assault Rifle Launcher Grenade Launcher Build | -11 -10 -10 -10 -9 ------- Run | Yrd Mat Min Exi Min Slots Evolved . | . . . . . Power . | . . . . . Propulsion . | . . . . . Utility . | . . . . . Weapon . | . . . . . Parts Attached 15 | 6 3 6 . . Power 2 | 1 . 1 . . Engine 2 | 1 . 1 . . Core . | . . . . . Reactor . | . . . . . Propulsion 3 | 2 . 1 . . Treads 2 | 2 . . . . Leg . | . . . . . Wheel 1 | . . 1 . . Hover . | . . . . . Flight . | . . . . . Utility 4 | 1 2 1 . . Device 1 | . . 1 . . Storage 3 | 1 2 . . . Processor . | . . . . . Hackware . | . . . . . Protection . | . . . . . Artifact . | . . . . . Weapon 6 | 2 1 3 . . Energy Gun 3 | 1 . 2 . . Energy Cannon . | . . . . . Ballistic Gun 2 | 1 1 . . . Ballistic Cannon . | . . . . . Launcher 1 | . . 1 . . Special Weapon . | . . . . . Impact Weapon . | . . . . . Slashing Weapon . | . . . . . Piercing Weapon . | . . . . . Special Melee Weapon . | . . . . . Unidentified Prototypes . | . . . . . Parts Lost 2 | . 1 1 . . Power 1 | . 1 . . . Propulsion 1 | . . 1 . . Utility . | . . . . . Weapon . | . . . . . Highest Loss Streak 1 | . 1 1 . . To Critical Strikes . | . . . . . Average Backups 8 | 1 4 9 10 10 Power 1 | . 1 1 2 2 Propulsion 2 | . 1 2 2 2 Utility . | . . . . . Weapon 5 | . 2 5 6 6 Tool/Special . | . . . . . Unused Backups 9 | . . . . 9 Power 2 | . . . . 2 Propulsion 2 | . . . . 2 Utility . | . . . . . Weapon 5 | . . . . 5 Tool/Special . | . . . . . Average Slot Usage (%) 89 | . 84 87 100 100 Engine 11 | . 13 10 14 14 Treads 21 | . 28 21 14 14 Wheel 6 | . . 6 14 14 Device 6 | . . 5 14 14 Storage 14 | . 14 14 14 14 Energy Gun 10 | . 3 10 14 14 Ballistic Gun 13 | . 24 10 14 14 Launcher 4 | . . 6 . . Peak Build Rating 14 | 6 7 14 12 12 Average Rating 9 | 4 5 9 12 12 On Entrance 7 | . 6 5 12 12 Avg Prop Armor Cover (%) 11 | 29 . 11 11 11 Naked Turns . | . . . . . Heaviest Build 22 | 14 19 22 21 21 Greatest Support 40 | 40 40 40 16 16 Greatest Overweight (x) 1 | 1 . 1 1 1 Average Overweight (x) . | . . . 1 1 Largest Inventory Capacity 15 | 8 15 10 10 10 Average Capacity 9 | 6 9 10 10 10 Most Carried 10 | 3 8 10 10 10 Average Carried 8 | 1 4 9 10 10 Final Capacity 10 | 8 10 10 10 10 Final Carried 10 | 3 8 10 10 10 Class Distribution -------------------- 100% | Mutant Dominant Class ---------------- Mutant | -10/Materials Mutant | -10/Mines Mutant | -10/Exiles Mutant | -9/Mines Resources | -11 -10 -10 -10 -9 ----------- Run | Yrd Mat Min Exi Min Matter Collected 522 | 181 50 291 . . Remotely . | . . . . . Salvage Created 348 | . 96 252 . . Parts 20 | . 6 14 . . Haulers Intercepted . | . . . . . Recyclers Shooed . | . . . . . Parts Field Recycled . | . . . . . Retrieved Matter . | . . . . . Parts Self-Destructed . | . . . . . Prevented . | . . . . . Parts Restored . | . . . . . Kills | -11 -10 -10 -10 -9 ------- Run | Yrd Mat Min Exi Min Combat Hostiles Destroyed 12 | . 4 8 . . Guns 9 | . 4 5 . . AOE 3 | . . 3 . . Classes Destroyed 2 | . 2 . . . Swarmer 6 | . 3 3 . . Grunt 6 | . 1 5 . . Best Kill Streak 3 | . 2 3 . . Combat Bots Only 3 | . 2 3 . . Max Kills in Single Turn 3 | . 1 3 . . Gunslinging . | . . . . . Exploded 3 | . . 3 . . Melee . | . . . . . Uniques/NPCs Destroyed . | . . . . . Combat | -11 -10 -10 -10 -9 -------- Run | Yrd Mat Min Exi Min Hostile Shots Fired 90 | . 41 49 . . Missed 23 | . 11 12 . . Hits 67 | . 30 37 . . Projectile 67 | . 30 37 . . Critical Strikes 1 | . . 1 . . Damage Taken 741 | . 291 450 . . Core 186 | . 37 149 . . Absorbed by Shields . | . . . . . Core Remaining (%) 100 | 100 . . . . Volleys Fired 49 | . 18 31 . . Largest 2 | . 2 2 . . Hottest 83 | . 40 83 . . Shots Fired 85 | . 36 49 . . Gun 84 | . 36 48 . . Cannon . | . . . . . Launcher 1 | . . 1 . . Special . | . . . . . Kinetic 62 | . 36 26 . . Thermal 15 | . . 15 . . Explosive 1 | . . 1 . . Electromagnetic 7 | . . 7 . . Robot Hit Streak 5 | . 5 5 . . Robot Miss Streak 4 | . 2 4 . . Penetration Max . | . . . . . Secondary Targets . | . . . . . Shots Hit Robots 48 | . 20 28 . . Core Hits 20 | . 7 13 . . Critical Kills . | . . . . . Critical Parts Destroyed . | . . . . . Critical Strikes 1 | . . 1 . . Burn 1 | . . 1 . . Melee Attacks . | . . . . . Impact . | . . . . . Slashing . | . . . . . Piercing . | . . . . . Sneak Attacks . | . . . . . Combat Hostiles . | . . . . . Follow-up Attacks . | . . . . . Damage Inflicted 734 | . 210 524 . . Guns 611 | . 210 401 . . Cannons . | . . . . . Explosions 123 | . . 123 . . Melee . | . . . . . Ramming . | . . . . . Kinetic 416 | . 210 206 . . Thermal 102 | . . 102 . . Explosive 123 | . . 123 . . Electromagnetic 93 | . . 93 . . Impact . | . . . . . Slashing . | . . . . . Piercing . | . . . . . Highest Corruption 4 | . 4 4 4 4 Average Corruption 3 | . 3 4 4 4 Corruption Purged . | . . . . . Corruption Blocked . | . . . . . Effects 20 | . . 17 3 . Message Errors 8 | . . 7 1 . Matter Fused 6 | . . 4 2 . Heat Flow Errors 1 | . . 1 . . Energy Discharges 1 | . . 1 . . Data Loss (minor) 1 | . . 1 . . Data Loss (major) 1 | . . 1 . . Misfires 1 | . . 1 . . Alerts 1 | . . 1 . . Overload Shots . | . . . . . Overflow Damage . | . . . . . Projectiles . | . . . . . Explosions . | . . . . . Melee . | . . . . . Knockbacks . | . . . . . Impact . | . . . . . Kinetic . | . . . . . Secondary . | . . . . . Self-Inflicted Damage . | . . . . . Shots . | . . . . . Rammed . | . . . . . Targets Rammed . | . . . . . Kicked . | . . . . . Crushed . | . . . . . Highest Temperature 306 | . 12 306 . . Average Temperature 143 | . 6 161 . . Received Heat Transfer 354 | . 96 258 . . Effects 1 | . . 1 . . Short Circuit 1 | . . 1 . . Siege Activations . | . . . . . Martial Activations . | . . . . . Shielding Activations . | . . . . . Robots Disrupted . | . . . . . Combat Hostiles . | . . . . . Robots Corrupted . | . . . . . Combat Hostiles . | . . . . . Parts Fried . | . . . . . Impact Corruptions . | . . . . . Robots Melted . | . . . . . Combat Hostiles . | . . . . . Parts Melted . | . . . . . Heat Transferred 296 | . . 296 . . Parts Sabotaged . | . . . . . Parts Stolen . | . . . . . Parts Stripped . | . . . . . Power Chain Reactions . | . . . . . Alert | -11 -10 -10 -10 -9 ------- Run | Yrd Mat Min Exi Min Maximum Alert Level . | . . . . . Low Security (%) 100 | 100 100 100 . 100 Level 1 . | . . . . . Level 2 . | . . . . . Level 3 . | . . . . . Level 4 . | . . . . . Level 5 . | . . . . . High Security . | . . . . . Max Security . | . . . . . Peak Influence 139 | . 80 139 . . Initial 23 | . . 23 . . Average 55 | . 40 64 . . Influence Increases 465 | . 130 335 . . Destroy 0b10 Robot/C 240 | . 80 160 . . Destroy Leader 50 | . 20 30 . . Destroy Structure 10 | . . 10 . . Lose Combat Pursuer 165 | . 30 135 . . Influence Decreases 465 | . 70 312 83 . Entered New Map 120 | . . 37 83 . Time Decay 325 | . 60 265 . . Lost Part 20 | . 10 10 . . Squads Dispatched 3 | . 2 1 . . Investigation 2 | . 1 1 . . Extermination . | . . . . . Reinforcement 1 | . 1 . . . Assault . | . . . . . Garrison . | . . . . . Intercept . | . . . . . Searches Triggered . | . . . . . Construction Impeded . | . . . . . Haulers Reinforced . | . . . . . Active Scanning Responses . | . . . . . Cargo Convoy Interrupts . | . . . . . Stealth | -11 -10 -10 -10 -9 --------- Run | Yrd Mat Min Exi Min Distress Signals 3 | . 3 . . . Communications Jammed . | . . . . . Distress Signals . | . . . . . Times Spotted 29 | . 12 16 . 1 Peak Tracking Total 5 | . 5 4 . 1 Tactical Retreats 6 | . 1 5 . . Traps | -11 -10 -10 -10 -9 ------- Run | Yrd Mat Min Exi Min Traps Triggered 3 | . 3 . . . Indirectly . | . . . . . Trap Hack Attempts . | . . . . . Triggered . | . . . . . Disarmed . | . . . . . Reprogrammed . | . . . . . Reused . | . . . . . Traps Extracted . | . . . . . Installed . | . . . . . Triggered . | . . . . . Machines | -11 -10 -10 -10 -9 ---------- Run | Yrd Mat Min Exi Min Machines Disabled . | . . . . . Max in Single Turn . | . . . . . Machines Repaired . | . . . . . Machines Dismantled . | . . . . . Machines Sabotaged . | . . . . . Overloaded Fab Kills . | . . . . . Hacking | -11 -10 -10 -10 -9 --------- Run | Yrd Mat Min Exi Min Machines Accessed 1 | . . 1 . . Terminals . | . . . . . Fabricators . | . . . . . Repair Stations . | . . . . . Recycling Units . | . . . . . Scanalyzers . | . . . . . Garrison Access . | . . . . . Total Hacks 1 | . . 1 . . Successful 1 | . . 1 . . Failed . | . . . . . Catastrophic . | . . . . . Database Lockouts . | . . . . . Manual . | . . . . . Terminals . | . . . . . Fabricators . | . . . . . Repair Stations . | . . . . . Recycling Units . | . . . . . Scanalyzers . | . . . . . Garrison Access . | . . . . . Terminal Hacks 1 | . . 1 . . Open Door 1 | . . 1 . . Fabricator Hacks . | . . . . . Repair Station Hacks . | . . . . . Recycling Unit Hacks . | . . . . . Scanalyzer . | . . . . . Garrison Access Hacks . | . . . . . Unauthorized Hacks . | . . . . . Terminals . | . . . . . Fabricators . | . . . . . Repair Stations . | . . . . . Recycling Units . | . . . . . Scanalyzers . | . . . . . Garrison Access . | . . . . . Data Cores Recovered . | . . . . . Used . | . . . . . Hacking Detections . | . . . . . Full Trace Events . | . . . . . Feedback Events . | . . . . . Feedback Blocked . | . . . . . Robot Schematics Acquired . | . . . . . Robots Built . | . . . . . Authchips . | . . . . . Time . | . . . . . Total Robot Build Rating . | . . . . . Part Schematics Acquired . | . . . . . Parts Built . | . . . . . Authchips . | . . . . . Time . | . . . . . Total Part Build Rating . | . . . . . Part Studies Acquired . | . . . . . Parts Repaired . | . . . . . Time . | . . . . . Parts Recycled . | . . . . . Recycled Matter . | . . . . . Retrieved Matter . | . . . . . Retrieved Components . | . . . . . Parts Scanalyzed . | . . . . . Part Schematics Acquired . | . . . . . Parts Damaged . | . . . . . Bothacking | -11 -10 -10 -10 -9 ------------ Run | Yrd Mat Min Exi Min Used RIF Installer . | . . . . . Robots Hacked . | . . . . . Non-combat . | . . . . . Combat . | . . . . . Robot Hacks Applied . | . . . . . Relay Couplers Released . | . . . . . Fabnet Peak Effective % . | . . . . . Robots Rewired . | . . . . . Allies Hacked . | . . . . . Hacks Repelled . | . . . . . Allies | -11 -10 -10 -10 -9 -------- Run | Yrd Mat Min Exi Min Total Allies . | . . . . . Largest Group . | . . . . . Highest-Rated Group . | . . . . . Highest-Rated Ally . | . . . . . Total Orders . | . . . . . Ally Attacks . | . . . . . Total Damage . | . . . . . Kills . | . . . . . Allies Corrupted . | . . . . . Allies Melted . | . . . . . Intel | -11 -10 -10 -10 -9 ------- Run | Yrd Mat Min Exi Min Active Infowar (turns) . | . . . . . Robot Analysis Total . | . . . . . Derelict Logs Recovered 1 | . . 1 . . Drone Launches . | . . . . . Drone Recoveries . | . . . . . Exploration | -11 -10 -10 -10 -9 ------------- Run | Yrd Mat Min Exi Min Turns Passed 1133 | 55 177 661 229 11 Spaces Moved 733 | 38 73 413 200 9 Core 16 | 16 . . . . Treads 288 | 22 73 193 . . Legs . | . . . . . Wheels 429 | . . 220 200 9 Hover . | . . . . . Flight . | . . . . . Fastest Speed 50 | 50 160 115 115 115 Average Speed 131 | 115 160 136 115 115 Slowest Speed 160 | 160 160 160 115 115 Overloaded Moves . | . . . . . Propulsion Burnouts . | . . . . . Robots Hopped . | . . . . . Potential Cave-ins . | . . . . . Cave-ins Triggered . | . . . . . Exploration Rate (%) 35 | 3 23 87 60 6 Regions Visited 4 Branch Regions 3 Pre-discovered Areas 1 | . . 1 . . Known Exits Taken . | . . . . . Unknown Exits Taken 4 | 1 1 1 1 . Scrap Searched 1 | . . 1 . . Spaces Dug . | . . . . . Terrain Destroyed 10 | . . 10 . . Melee . | . . . . . Projectile . | . . . . . AOE 10 | . . 10 . . Terrain Rammed . | . . . . . Walls Destroyed . | . . . . . Machines Disabled . | . . . . . Actions | -11 -10 -10 -10 -9 --------- Run | Yrd Mat Min Exi Min Total 817 | 46 100 463 199 9 Wait 3 | . . 3 . . Move 729 | 37 72 412 199 9 Hop . | . . . . . Pick Up 14 | 3 5 6 . . Fast Attach 10 | 6 2 2 . . Attach 2 | . . 2 . . Detach . | . . . . . Swap 5 | . 1 4 . . Drop 5 | . 2 3 . . Fire 49 | . 18 31 . . Melee . | . . . . . Ram . | . . . . . Kick . | . . . . . Crush . | . . . . . Escape Stasis . | . . . . . Rewire . | . . . . . Trap . | . . . . . Miscellaneous . | . . . . . Route ------- -11/Scrapyard -10/Materials (discovered 2 exits: [*Mat] / *Min) -10/Mines (discovered 3 exits: [*Mat x2] / [*Exi]) -10/Exiles -9/Mines History --------- Turn | Location | Event 3 | -11/Scrapyard | Discovered new exit (range 16) 56 | -11/Scrapyard | Entered Materials 201 | -10/Materials | Discovered new exit (range 15) 210 | -10/Materials | Discovered new exit (range 12) 233 | -10/Materials | Entered Mines 287 | -10/Mines | Learned location of Zion (-7) 311 | -10/Mines | Build established: Mutant 378 | -10/Mines | Met a Derelict shopkeep closing up shop 484 | -10/Mines | Found a hidden stash of uninstalled traps 574 | -10/Mines | Core integrity fell below 50% 613 | -10/Mines | Discovered new exit (range 15) 806 | -10/Mines | Found a Scrap Suit stashed away for nefarious purposes 818 | -10/Mines | Discovered new exit (range 5) 889 | -10/Mines | Deemed a non-threat by the Exiles lab entrance 889 | -10/Mines | Discovered new exit (range 5) 894 | -10/Mines | Entered Exiles 894 | -10/Exiles | Found Exiles lab abandoned 1111 | -10/Exiles | Discovered new exit (range 12) 1123 | -10/Exiles | Entered Mines 1125 | -9/Mines | Joined a pair of Derelicts in attacking an 0b10 outpost 1134 | -9/Mines | Self-destructed Last Messages --------------- find a way to safely deliver this to MAIN.C to get on their good side and convince them to let us into the system." 00811_ EWNHLNYE&RNORVS>OGU,8IW&LUT7R /GAG2JW3VDZ7 01093_ System corrupted: Matter fused (-5). 01111_ EXIT=FOUND LOCATION=UNKNOWN GOAL=ESCAPE 01125_ A derelict emerges from the shadows: "We've had our eye on this brand new outpost for a little while, just waiting for an opportunity to strike. Need some help?" Map ----- +----------------------------------------------------+ | | | | | | | | | | | | | | | | | | | | | | | | | | | ????????????????????????????????????????? | | ?????????????????????????????######?????? | | ????????????????????????????##"[!"##????? | | ????????????????????????????#""!!""#????? | | ????????????????????????????# !!%#????? | | ?????????????????????????????# [#?????? | | ?????????????????????????######//####???? | | ?????????????????????????# g #???? | | ?????????????????????????# #???? | | ?????????????????????????# #???? | | ?????????????????????????# #???? | | ????????????????????###### #???? | | ????????????????????# @ #???? | | ????????????????????# #### #???? | | ?????????????????????????############???? | | ????????????????????????????????????????? | | ????????????????????????????????????????? | | ????????????????????????????????????????? | | ????????????????????????????????????????? | | ????????????????????????????????????????? | | ????????????????????????????????????????? | | ????????????????????????????????????????? | | ????????????????????????????????????????? | | ????????????????????????????????????????? | | ????????????????????????????????????????? | | ????????????????????????????????????????? | | ????????????????????????????????????????? | | ????????????????????????????????????????? | | ????????????????????????????????????????? | | ????????????????????????????????????????? | | ????????????????????????????????????????? | | ????????????????????????????????????????? | | ????????????????????????????????????????? | | ????????????????????????????????????????? | | ????????????????????????????????????????? | | ????????????????????????????????????????? | | ????????????????????????????????????????? | +----------------------------------------------------+ Best States ------------- Heat Dissipation 39 Energy Generation 10 Energy Capacity 250 Matter Stores 300 Matter Capacity 300 Sight Range 16 Terrain Scan Density 10 Evasion (%) 50 Recoil Reduction 2 Item Schematics ----------------- None Robot Schematics ------------------ None Fabricated ------------ Nothing Repaired ---------- Nothing Studied --------- None Alien Tech Used ----------------- None Achievements -------------- None Challenges ------------ None Game ------ Seed IonCombatCanceller Manual? 0 Play Time 00:06:49 Cumulative 1783.1 hours Start 2026.09.07 @ 09:33:07 End 2026.09.07 @ 09:42:16 Sessions 1 Manual Loads 0 Difficulty Rogue Special Mode None Game No. 542 Rogue 534 Adventurer 4 Explorer 4 Win Type - Total 72 Types 31/10/6/4/2/5/7/2/3/2 Lore% 97 Gallery% 96 Achievement% 92 Wizard Run 0 Options --------- Layout 0 ASCII 0 Keyboard 0 Movement Numpad Keybinds 0 Fullscreen 2 Font 18/SmallcapsGlow Map View 76x50 Zoom Use 0% Tactical HUD 1 Map Filters NONE Filters NONE Steam 1 RUN: 3fa39d6b-1c40-468e-9f55-adcdf1354cf5